fUSD/lending_fUSD_20240717
["ID","MTS","AMOUNT","RATE_DAILY","PERIOD"]
[332445385,1721189438456,-1085.23286383,0.00013999,5]
[332445386,1721189438466,-278.00587597,0.00013999,2]
[332445387,1721189438476,-150.0,0.00013999,2]
[332445388,1721189438485,-160.40084414,0.00013999,2]
[332445389,1721189438494,-13557.60247932,0.00014,2]
[332445390,1721189438506,-311.55486482,0.00014,2]
[332445391,1721189438577,-28519.78604438,0.00014,2]
[332445392,1721189438605,-342289.72209876,0.00014,2]
[332445393,1721189438645,-2116.49878254,0.00014,2]
[332445394,1721189438871,-847652.78216643,0.00014,2]
[332445409,1721189440498,-768.502351,0.0001381,2]
[332445410,1721189440508,-1480.02418618,0.00014,2]
[332445411,1721189440519,-483.84000014,0.00014,2]
[332445412,1721189440576,-834241.9196479,0.00014,2]
[332445413,1721189440586,-500.0,0.00014,2]
[332445414,1721189440596,-621.0,0.00014,2]
[332445415,1721189440605,-500.0,0.00014,2]
[332445416,1721189440615,-595.0,0.00014,2]
[332445417,1721189440626,-1138.22095,0.00014,2]
[332445418,1721189440635,-250.0,0.00014058,2]
[332445419,1721189440644,-250.0,0.00014059,2]
[332445420,1721189440654,-155.0,0.00014099,2]
[332445421,1721189440664,-762.38,0.00014236,2]
[332445422,1721189440676,-591.35,0.00014331,2]
[332445423,1721189440685,-298.64017764,0.00014393,2]
[332445424,1721189440694,-12821.64235029,0.000145,2]
[332445425,1721189440703,-155.0,0.00014899,2]
[332445426,1721189440713,-200.0,0.00014899,2]
[332445427,1721189440722,-1000.0,0.000149,3]
[332445428,1721189440732,-300.0,0.00015,2]
[332445429,1721189440742,-1001.0,0.00015,3]
[332445430,1721189440751,-671.0,0.000157,2]
[332445432,1721189440760,-183.88,0.00015763,2]
[332445434,1721189440770,-266.74,0.00015826,2]
[332445436,1721189440779,-304.37001,0.00015832,2]
[332445439,1721189440789,-494.91277936,0.00015832,2]
[332445441,1721189440799,-1010.0,0.000159,3]
[332445443,1721189440809,-1000.0,0.000159,3]
[332445445,1721189440818,-1500.0,0.00015912,5]
[332445447,1721189440828,-5000.0,0.00016,2]
[332445449,1721189440838,-762.38,0.00016016,2]
[332445451,1721189440847,-327.95,0.00016164,2]
[332445453,1721189440857,-150.0,0.00016164,2]
[332445455,1721189440866,-150.0,0.00016164,2]
[332445457,1721189440876,-150.0,0.00016164,2]
[332445459,1721189440886,-935.21386278,0.0001621,2]
[332445461,1721189440896,-150.0,0.00016234,2]
[332445463,1721189440908,-155.18918966,0.00016315,2]
[332445464,1721189440918,-150.0,0.00016434,2]
[332445466,1721189440927,-591.35,0.00016595,2]
[332445468,1721189440937,-150.0,0.00016634,2]
[332445470,1721189440947,-300.0,0.00016634,2]
[332445472,1721189440957,-335.95,0.00016634,2]
[332445474,1721189440966,-1081.48,0.00016634,2]
[332445476,1721189440976,-175.70923073,0.0001665,2]
[332445478,1721189440986,-438.89725206,0.00016699,2]
[332445480,1721189440995,-209.48011449,0.00016699,2]
[332445482,1721189441004,-200.0,0.000167,2]
[332445484,1721189441014,-152.0,0.00016778,3]
[332445486,1721189441023,-1000.0,0.000169,3]
[332445488,1721189441032,-1000.0,0.000169,3]
[332445490,1721189441041,-1000.0,0.000169,3]
[332445492,1721189441051,-1000.0,0.000169,3]
[332445494,1721189441060,-350.0,0.00017,2]
[332445496,1721189441069,-152.0,0.00017202,4]
[332445497,1721189441078,-315.97745434,0.00017582,2]
[332445499,1721189441087,-175.06,0.00017591,2]
[332445501,1721189441096,-152.0,0.00017626,5]
[332445503,1721189441106,-762.38,0.00017795,2]
[332445505,1721189441115,-266.74,0.00017804,2]
[332445507,1721189441124,-1000.0,0.000179,4]
[332445509,1721189441134,-1000.0,0.000179,3]
[332445510,1721189441144,-183.88,0.00018015,2]
[332445512,1721189441153,-152.0,0.00018049,6]
[332445514,1721189441162,-400.0,0.0001807,2]
[332445516,1721189441173,-152.0,0.00018473,7]
[332445518,1721189441182,-599.92350434,0.000185,2]
[332445520,1721189441191,-1000.0,0.000185,5]
[332445522,1721189441199,-935.21386278,0.00018521,2]
[332445524,1721189441208,-534.45148291,0.00018739,2]
[332445526,1721189441218,-3037.41636323,0.0001878,2]
[332445528,1721189441227,-591.35,0.00018859,2]
[332445530,1721189441236,-152.0,0.00018897,8]
[332445532,1721189441245,-95954.11746444,0.000189,2]
[332445534,1721189441254,-544.8343,0.000189,2]
[332445536,1721189441263,-284.37515692,0.000189,2]
[332445538,1721189441272,-514.30963918,0.000189,2]
[332445539,1721189441280,-1050.98905039,0.00018999,2]
[332445541,1721189441289,-3366.3505011,0.00018999,2]
[332445543,1721189441298,-29184.6672868,0.00018999,2]
[332445545,1721189441307,-573.63309846,0.00018999,2]
[332445547,1721189441317,-1022.971156,0.00018999,2]
[332445549,1721189441327,-2296647.10023935,0.00019,2]
[332445551,1721189441336,-109553.72637877,0.00019,2]
[332445553,1721189441345,-492.0,0.00019,2]
[332445555,1721189441355,-400.0,0.00019,2]
[332445557,1721189441364,-1000.0,0.00019,2]
[332445559,1721189441374,-1000.0,0.00019,2]
[332445561,1721189441383,-1000.0,0.00019,2]
[332445563,1721189441392,-1000.0,0.00019,2]
[332445565,1721189441401,-1000.0,0.00019,2]
[332445567,1721189441410,-1000.0,0.00019,2]
[332445569,1721189441422,-1000.0,0.00019,2]
[332445571,1721189441431,-1000.0,0.00019,2]
[332445573,1721189441441,-1000.0,0.00019,2]
[332445575,1721189441450,-1000.0,0.00019,2]
[332445577,1721189441459,-1000.0,0.00019,2]
[332445579,1721189441468,-830.33742002,0.00019,2]
[332445581,1721189441478,-501.1585246,0.00019,2]
[332445583,1721189441487,-1138.22095,0.00019,2]
[332445585,1721189441496,-3756.4893485,0.00019012,2]
[332445587,1721189441505,-2080.996655,0.00019012,2]
[332445589,1721189441515,-17001.7121831,0.00019159,2]
[332445591,1721189441525,-419.72,0.00019172,2]
[332445593,1721189441534,-419.72,0.00019172,2]
[332445595,1721189441543,-150.0,0.00019178,2]
[332445597,1721189441552,-150.0,0.00019178,2]
[332445599,1721189441562,-150.0,0.00019178,2]
[332445600,1721189441571,-305.24178034,0.00019229,2]
[332445602,1721189441580,-152.0,0.0001932,9]
[332445604,1721189441590,-615.6,0.00019328,2]
[332445606,1721189441599,-485.15544657,0.00019354,2]
[332445608,1721189441608,-181.76,0.00019385,2]
[332445610,1721189441617,-293.52221383,0.00019389,2]
[332445612,1721189441626,-251.46478538,0.00019389,2]
[332445614,1721189441635,-369.54465039,0.00019399,2]
[332445616,1721189441645,-190.64074574,0.00019399,2]
[332445618,1721189441654,-175.70923073,0.000194,2]
[332445620,1721189441663,-155.0,0.00019548,2]
[332445622,1721189441674,-762.38,0.00019575,2]
[332445624,1721189441683,-529.36820483,0.00019725,2]
[332445626,1721189441692,-152.0,0.00019744,10]
[332445628,1721189441701,-266.74,0.00019782,2]
[332445630,1721189441710,-6809.999193,0.000198,2]
[332445632,1721189441720,-3000.0,0.000198,2]
[332445634,1721189441729,-202.0,0.0001983,2]
[332445636,1721189441738,-600.0,0.00019847,2]
[332445654,1721189441903,-531.78446857,0.00019863,2]
[332445657,1721189441924,-366.80013867,0.00019863,2]
[332445659,1721189441934,-119365.64386303,0.0001988,2]
[332445661,1721189441945,-28233.77544536,0.0001988,2]
[332445663,1721189441955,-155.2432029,0.000199,2]
[332445665,1721189441964,-198.38,0.00019995,5]
[332445666,1721189441973,-155.11082088,0.00019997,2]
[332445668,1721189441983,-329.14665571,0.00019997,2]
[332445670,1721189441992,-549.69983528,0.00019997,2]
[332445672,1721189442001,-155.0,0.0002,2]
[332445674,1721189442010,-3176.24432368,0.0002,2]
[332445676,1721189442019,-1278.96862011,0.0002,2]
[332445678,1721189442029,-155.0,0.0002,2]
[332445680,1721189442038,-748.61567159,0.0002,2]
[332445682,1721189442047,-184.3,0.0002,10]
[332445684,1721189442057,-258.0,0.0002,2]
[332445686,1721189442066,-6286.20226353,0.0002,2]
[332445687,1721189442075,-868.68590752,0.0002,2]
[332445689,1721189442084,-4279.14032286,0.0002,15]
[332445691,1721189442093,-327.58779712,0.0002,2]
[332445693,1721189442102,-304.45297025,0.0002,2]
[332445695,1721189442111,-188.4103101,0.0002,2]
[332445696,1721189442120,-984.0,0.0002,2]
[332445698,1721189442129,-188.84596951,0.0002,2]
[332445700,1721189442138,-156.55526551,0.0002,2]
[332445702,1721189442148,-517.0,0.0002,2]
[332445704,1721189442157,-755.25147207,0.0002,2]
[332445706,1721189442166,-2725.78525691,0.0002,7]
[332445708,1721189442175,-984.0,0.0002,2]
[332445710,1721189442184,-578.44312975,0.00020004,2]
[332445712,1721189442193,-578.44312975,0.00020028,2]
[332445714,1721189442203,-151.76006347,0.00020041,2]
[332445716,1721189442212,-150.62825954,0.00020077,2]
[332445718,1721189442222,-3410.88204025,0.0002008,2]
[332445720,1721189442231,-578.44312975,0.00020146,2]
[332445722,1721189442241,-200.0,0.0002015,30]
[332445724,1721189442250,-152.0,0.00020168,11]
[332445726,1721189442260,-2020.99627439,0.000202,2]
[332445728,1721189442269,-282.49712453,0.00020203,2]
[332445730,1721189442279,-151.76006347,0.00020239,2]
[332445732,1721189442288,-155.17415961,0.00020266,2]
[332445734,1721189442297,-183.88,0.00020266,2]
[332445736,1721189442306,-166.66666668,0.00020275,2]
[332445738,1721189442315,-222.78721591,0.00020307,2]
[332445739,1721189442324,-150.62825954,0.00020311,2]
[332445741,1721189442334,-155.11036895,0.00020314,2]
[332445743,1721189442343,-155.17415961,0.00020314,2]
[332445745,1721189442352,-151.76006347,0.00020327,2]
[332445747,1721189442361,-151.97548656,0.0002035,2]
[332445749,1721189442371,-578.44312975,0.00020358,2]
[332445751,1721189442380,-222.78721591,0.00020381,2]
[332445753,1721189442389,-155.9383458,0.00020432,2]
[332445755,1721189442398,-155.17415961,0.00020473,2]
[332445757,1721189442408,-2000.0,0.000205,2]
[332445759,1721189442419,-6241.41261708,0.000205,2]
[332445761,1721189442428,-493.13050874,0.000205,2]
[332445763,1721189442437,-1592.89255447,0.000205,2]
[332445765,1721189442446,-6648.87491323,0.000205,2]
[332445767,1721189442455,-600.0,0.000205,2]
[332445769,1721189442464,-152.38095238,0.0002053,2]
[332445771,1721189442473,-150.62825954,0.0002053,2]
[332445773,1721189442483,-155.11036895,0.00020539,2]
[332445775,1721189442491,-152.0,0.00020591,12]
[332445777,1721189442501,-222.78721591,0.00020603,2]
[332445779,1721189442510,-387.56629976,0.00020636,2]
[332445781,1721189442519,-325.28274957,0.00020676,2]
[332445783,1721189442529,-222.78721591,0.00020688,2]
[332445785,1721189442538,-325.28274957,0.00020696,2]
[332445787,1721189442548,-325.28274957,0.0002076,2]
[332445789,1721189442558,-387.56629976,0.00020773,2]
[332445791,1721189442567,-157.39515502,0.00020805,2]
[332445793,1721189442576,-157.39515502,0.00020809,2]
[332445795,1721189442585,-935.21386278,0.00020831,2]
[332445797,1721189442594,-325.28274957,0.00020864,2]
[332445799,1721189442603,-150.5107985,0.0002088,2]
[332445801,1721189442613,-151.94736869,0.00020886,2]
[332445803,1721189442622,-387.56629976,0.00020898,2]
[332445805,1721189442631,-202.0,0.000209,2]
[332445807,1721189442641,-884.26391562,0.00020935,2]
[332445809,1721189442650,-1508.74970403,0.00020935,2]
[332445811,1721189442660,-151.97548656,0.0002094,2]
[332445813,1721189442670,-358.67,0.0002096,2]
[332445815,1721189442679,-1467.66284399,0.00020969,2]
[332445816,1721189442688,-222.78721591,0.00020992,2]
[332445818,1721189442698,-225.50104931,0.00021,2]
[332445820,1721189442707,-319.255,0.00021,2]
[332445822,1721189442716,-450.0,0.00021,2]
[332445824,1721189442726,-152.0,0.00021015,13]
[332445826,1721189442735,-150.62825954,0.00021043,2]
[332445828,1721189442745,-150.0,0.00021046,2]
[332445830,1721189442753,-282.49712453,0.00021058,2]
[332445832,1721189442763,-151.97548656,0.0002107,2]
[332445834,1721189442772,-387.56629976,0.00021094,2]
[332445836,1721189442782,-151.94736869,0.00021098,2]
[332445838,1721189442791,-2498.02656989,0.00021111,2]
[332445840,1721189442800,-222.78721591,0.00021114,2]
[332445843,1721189442811,-591.35,0.00021122,2]
[332445845,1721189442821,-151.97548656,0.00021127,2]
[332445847,1721189442830,-325.28274957,0.00021132,2]
[332445849,1721189442840,-166.66666666,0.00021141,2]
[332445851,1721189442850,-166.66666668,0.00021165,2]
[332445853,1721189442860,-151.76006347,0.00021195,2]
[332445855,1721189442869,-150.62825954,0.00021198,2]
[332445857,1721189442879,-222.78721591,0.00021224,2]
[332445859,1721189442888,-150.62825954,0.00021257,2]
[332445861,1721189442901,-315.97745434,0.00021263,2]
[332445863,1721189442910,-157.39515502,0.00021264,2]
[332445865,1721189442920,-166.66666667,0.00021287,2]
[332445866,1721189442929,-151.76006347,0.00021294,2]
[332445868,1721189442939,-151.76006347,0.00021326,2]
[332445870,1721189442948,-762.38,0.00021355,2]
[332445872,1721189442957,-151.0,0.00021362,30]
[332445874,1721189442967,-180.0,0.00021397,2]
[332445876,1721189442978,-151.76006347,0.0002141,2]
[332445878,1721189442988,-151.76006347,0.00021419,2]
[332445880,1721189442997,-152.0,0.00021438,14]
[332445882,1721189443008,-578.44312975,0.00021443,2]
[332445884,1721189443018,-222.78721591,0.00021458,2]
[332445886,1721189443026,-157.39515502,0.00021463,2]
[332445888,1721189443036,-578.44312975,0.0002147,2]
[332445890,1721189443045,-325.28274957,0.00021493,2]
[332445892,1721189443054,-150.0,0.00021514,2]
[332445894,1721189443064,-166.66666667,0.00021518,2]
[332445896,1721189443073,-325.28274957,0.00021551,2]
[332445897,1721189443082,-157.39515502,0.00021577,2]
[332445899,1721189443091,-387.56629976,0.00021617,2]
[332445901,1721189443101,-155.9383458,0.00021642,2]
[332445904,1721189443111,-534.66,0.00021644,2]
[332445906,1721189443120,-482.41,0.00021644,2]
[332445908,1721189443130,-162.33,0.00021644,2]
[332445910,1721189443139,-151.97548656,0.00021653,2]
[332445912,1721189443148,-151.94736869,0.0002166,2]
[332445914,1721189443157,-150.62825954,0.00021671,2]
[332445916,1721189443167,-222.78721591,0.00021688,2]
[332445918,1721189443177,-222.78721591,0.00021723,2]
[332445920,1721189443186,-387.56629976,0.00021726,2]
[332445921,1721189443195,-152.38095238,0.0002173,2]
[332445923,1721189443205,-371.26695724,0.00021746,2]
[332445926,1721189443216,-2452.5847536,0.00021749,2]
[332445929,1721189443225,-3439.87,0.00021757,2]
[332445932,1721189443235,-266.74,0.0002176,2]
[332445935,1721189443245,-222.78721591,0.00021777,2]
[332445938,1721189443254,-282.49712453,0.00021782,2]
[332445942,1721189443263,-151.0,0.00021798,7]
[332445947,1721189443271,-325.28274957,0.00021799,2]
[332445952,1721189443280,-258.9911525,0.00021819,2]
[332445957,1721189443289,-578.44312975,0.00021829,2]
[332445961,1721189443299,-152.0,0.00021862,15]
[332445966,1721189443308,-387.56629976,0.00021873,2]
[332445971,1721189443317,-325.28274957,0.00021881,2]
[332445977,1721189443327,-150.62825954,0.00021887,2]
[332445982,1721189443336,-3000.0,0.000219,2]
[332445985,1721189443347,-616.36240716,0.00021918,30]
[332445988,1721189443356,-336.64,0.00021918,2]
[332445991,1721189443366,-150.0,0.00021918,2]
[332445994,1721189443375,-590.21,0.00021918,2]
[332445996,1721189443384,-166.71,0.00021918,2]
[332445998,1721189443393,-150.62825954,0.00021945,2]
[332446000,1721189443403,-202.0,0.0002197,2]
[332446002,1721189443412,-387.56629976,0.0002197,2]
[332446004,1721189443422,-155.17415961,0.00021976,2]
[332446005,1721189443431,-3876894.28792623,0.00021985,15]
[332446007,1721189443440,-14230.3464669,0.00021985,2]
[332446009,1721189443449,-11458.9807507,0.00021985,2]
[332446011,1721189443457,-8687.6150344,0.00021985,2]
[332446013,1721189443468,-5916.2493182,0.00021985,2]
[332446015,1721189443477,-3144.883602,0.00021985,2]
[332446017,1721189443487,-151.0,0.00021985,7]
[332446019,1721189443496,-1011.568587,0.00021985,7]
[332446020,1721189443505,-1011.568587,0.00021985,7]
[332446022,1721189443514,-151.0,0.00021985,7]
[332446024,1721189443523,-375.227327,0.00021985,7]
[332446026,1721189443532,-151.0,0.00021985,7]
[332446027,1721189443542,-375.227327,0.00021985,7]
[332446028,1721189443551,-152.042372,0.00021985,7]
[332446029,1721189443562,-151.0,0.00021985,7]
[332446030,1721189443571,-151.0,0.00021985,7]
[332446031,1721189443581,-151.36806,0.00021985,7]
[332446032,1721189443591,-151.0,0.00021985,7]
[332446033,1721189443600,-197.573092,0.00021985,7]
[332446034,1721189443610,-325.28274957,0.00021997,2]
[332446035,1721189443619,-2094.36646008,0.00022,5]
[332446036,1721189443627,-500.0,0.00022,2]
[332446037,1721189443637,-9055.4873928,0.00022,4]
[332446038,1721189443646,-740.37088349,0.00022,7]
[332446039,1721189443656,-616.36240716,0.00022,30]
[332446040,1721189443666,-151.390661,0.00022,7]
[332446041,1721189443676,-151.0,0.00022,7]
[332446043,1721189443685,-153.519409,0.00022,7]
[332446044,1721189443694,-151.0,0.00022,7]
[332446046,1721189443703,-151.0,0.00022,7]
[332446048,1721189443713,-151.0,0.00022,7]
[332446050,1721189443722,-151.0,0.00022,7]
[332446052,1721189443733,-151.0,0.00022,7]
[332446054,1721189443743,-151.152781,0.00022,7]
[332446056,1721189443755,-1462.169592,0.00022,7]
[332446058,1721189443765,-151.0,0.00022,7]
[332446060,1721189443775,-1462.169592,0.00022,7]
[332446062,1721189443787,-151.0,0.00022,7]
[332446065,1721189443798,-187.713105,0.00022,7]
[332446067,1721189443807,-187.713105,0.00022,7]
[332446068,1721189443816,-151.0,0.00022,7]
[332446069,1721189443826,-151.0,0.00022,7]
[332446070,1721189443835,-151.667338,0.00022,7]
[332446071,1721189443844,-151.0,0.00022,7]
[332446072,1721189443854,-151.0,0.00022,7]
[332446073,1721189443863,-3145.1129088,0.00022005,2]
[332446074,1721189443872,-1742.3101294,0.00022005,2]
[332446075,1721189443881,-24427.4178118,0.0002202,2]
[332446076,1721189443891,-19670.1683368,0.0002202,2]
[332446077,1721189443903,-14912.9188617,0.0002202,2]
[332446078,1721189443912,-10155.6693867,0.0002202,2]
[332446079,1721189443923,-5398.4199117,0.0002202,2]
[332446080,1721189443933,-856.2216452,0.0002202,2]
[332446081,1721189443942,-689.4721343,0.0002202,2]
[332446082,1721189443952,-522.7226234,0.0002202,2]
[332446083,1721189443960,-355.9731125,0.0002202,2]
[332446085,1721189443969,-189.2236016,0.0002202,2]
[332446086,1721189443981,-151.0,0.00022035,7]
[332446087,1721189443991,-151.0,0.00022035,7]
[332446088,1721189443999,-152.059412,0.00022035,7]
[332446089,1721189444008,-153.320087,0.00022035,7]
[332446090,1721189444018,-551.09449,0.00022035,7]
[332446091,1721189444026,-551.09449,0.00022035,7]
[332446092,1721189444036,-153.914694,0.00022035,7]
[332446093,1721189444046,-151.0,0.00022035,7]
[332446094,1721189444055,-155.560148,0.00022035,7]
[332446095,1721189444065,-151.0,0.00022035,7]
[332446096,1721189444075,-152.200125,0.00022035,7]
[332446097,1721189444084,-151.0,0.00022035,7]
[332446098,1721189444093,-151.0,0.00022035,7]
[332446099,1721189444103,-151.0,0.00022035,7]
[332446100,1721189444113,-151.0,0.00022035,7]
[332446102,1721189444123,-197.022907,0.00022035,7]
[332446103,1721189444133,-197.022907,0.00022035,7]
[332446105,1721189444141,-151.0,0.00022035,7]
[332446107,1721189444151,-151.0,0.00022035,7]
[332446109,1721189444160,-151.94736869,0.00022046,2]
[332446110,1721189444170,-155.17415961,0.00022098,2]
[332446111,1721189444179,-578.44312975,0.00022103,2]
[332446112,1721189444188,-616.36240716,0.0002211,30]
[332446113,1721189444199,-152.38095238,0.00022111,2]
[332446114,1721189444209,-2816.7682791,0.00022139,2]
[332446115,1721189444218,-2267.1860572,0.00022139,2]
[332446116,1721189444228,-1717.6038352,0.00022139,2]
[332446117,1721189444237,-1168.0216132,0.00022139,2]
[332446118,1721189444246,-618.4393913,0.00022139,2]
[332446119,1721189444256,-175.70923073,0.0002215,2]
[332446120,1721189444267,-151.0,0.00022154,7]
[332446121,1721189444414,-151.0,0.00022154,7]
[332446122,1721189444424,-151.0,0.00022154,7]
[332446123,1721189444434,-151.0,0.00022154,7]
[332446124,1721189444444,-151.0,0.00022154,7]
[332446125,1721189444453,-151.0,0.00022154,7]
[332446126,1721189444462,-151.0,0.00022154,7]
[332446127,1721189444472,-151.0,0.00022169,7]
[332446128,1721189444480,-164.410634,0.00022169,7]
[332446129,1721189444489,-164.410634,0.00022169,7]
[332446130,1721189444498,-151.0,0.00022169,7]
[332446131,1721189444507,-151.0,0.00022169,7]
[332446132,1721189444517,-152.767004,0.00022169,7]
[332446133,1721189444526,-151.0,0.00022169,7]
[332446134,1721189444535,-202.728221,0.00022169,7]
[332446135,1721189444545,-202.728221,0.00022169,7]
[332446136,1721189444554,-151.97548656,0.00022184,2]
[332446137,1721189444565,-151.0,0.00022185,7]
[332446138,1721189444575,-1257.157437,0.00022185,7]
[332446139,1721189444585,-151.0,0.00022185,7]
[332446140,1721189444594,-1257.157437,0.00022185,7]
[332446141,1721189444603,-616.36240716,0.00022192,30]
[332446142,1721189444613,-7188.92330574,0.000222,2]
[332446143,1721189444624,-173.290644,0.000222,7]
[332446144,1721189444633,-153.818042,0.000222,7]
[332446145,1721189444642,-151.0,0.000222,7]
[332446146,1721189444651,-151.0,0.000222,7]
[332446147,1721189444660,-387.56629976,0.00022208,2]
[332446148,1721189444670,-500.0,0.0002222,2]
[332446149,1721189444680,-500.0,0.0002222,2]
[332446150,1721189444689,-500.0,0.0002222,2]
[332446151,1721189444698,-500.0,0.0002222,2]
[332446152,1721189444708,-500.0,0.0002222,2]
[332446153,1721189444717,-500.0,0.0002222,2]
[332446154,1721189444727,-500.0,0.0002222,2]
[332446155,1721189444736,-500.0,0.0002222,2]
[332446156,1721189444745,-500.0,0.0002222,2]
[332446157,1721189444755,-500.0,0.0002222,2]
[332446158,1721189444765,-500.0,0.0002222,2]
[332446159,1721189444775,-500.0,0.0002222,2]
[332446160,1721189444785,-500.0,0.0002222,2]
[332446161,1721189444795,-500.0,0.0002222,2]
[332446162,1721189444804,-500.0,0.0002222,2]
[332446163,1721189444814,-500.0,0.0002222,2]
[332446164,1721189444824,-632.39295064,0.0002222,2]
[332446165,1721189444834,-151.0,0.00022243,4]
[332446166,1721189444843,-222.78721591,0.0002225,2]
[332446167,1721189444852,-222.78721591,0.00022274,2]
[332446168,1721189444862,-166.66666667,0.00022279,2]
[332446169,1721189444871,-578.44312975,0.00022285,2]
[332446170,1721189444882,-152.0,0.00022286,16]
[332446171,1721189444891,-616.36240716,0.00022301,30]
[332446172,1721189444903,-282.49712453,0.00022312,2]
[332446173,1721189444913,-387.56629976,0.00022329,2]
[332446174,1721189444924,-155.9383458,0.00022343,2]
[332446175,1721189444933,-155.17415961,0.00022363,2]
[332446176,1721189444945,-616.36240716,0.00022384,30]
[332446177,1721189444954,-151.29511776,0.00022446,2]
[332446178,1721189444964,-282.49712453,0.00022465,2]
[332446179,1721189444974,-616.36240716,0.00022466,30]
[332446180,1721189444984,-578.44312975,0.00022481,2]
[332446181,1721189444994,-150.62825954,0.00022493,2]
[332446182,1721189445003,-150.0,0.00022495,2]
[332446183,1721189445013,-151.94736869,0.00022505,2]
[332446184,1721189445022,-578.44312975,0.00022551,2]
[332446185,1721189445031,-500.0,0.00022553,2]
[332446186,1721189445041,-151.76006347,0.0002256,2]
[332446187,1721189445050,-616.36240716,0.00022575,30]
[332446188,1721189445060,-157.39515502,0.00022589,2]
[332446189,1721189445070,-152.38095238,0.00022614,2]
[332446190,1721189445079,-616.36240716,0.00022658,30]
[332446191,1721189445089,-282.49712453,0.00022677,2]
[332446192,1721189445099,-150.62825954,0.00022681,2]
[332446193,1721189445108,-151.0,0.00022696,2]
[332446194,1721189445118,-282.49712453,0.00022704,2]
[332446195,1721189445127,-151.76006347,0.00022704,2]
[332446196,1721189445137,-152.0,0.00022709,17]
[332446197,1721189445146,-153.81535848,0.00022709,5]
[332446198,1721189445156,-616.36240716,0.0002274,30]
[332446199,1721189445166,-325.28274957,0.00022754,2]
[332446200,1721189445177,-157.39515502,0.00022758,2]
[332446201,1721189445186,-222.78721591,0.00022758,2]
[332446202,1721189445195,-150.62825954,0.00022766,2]
[332446203,1721189445205,-150.86922992,0.00022826,2]
[332446204,1721189445215,-616.36240716,0.00022849,30]
[332446205,1721189445224,-578.44312975,0.00022851,2]
[332446206,1721189445233,-500.0,0.00022892,2]
[332446207,1721189445242,-152.38095238,0.00022912,2]
[332446208,1721189445251,-151.97548656,0.00022929,2]
[332446209,1721189445262,-616.36240716,0.00022932,30]
[332446210,1721189445271,-578.44312975,0.00022943,2]
[332446211,1721189445281,-282.49712453,0.00022976,2]
[332446212,1721189445291,-9087.71761198,0.00022988,2]
[332446213,1721189445301,-150.86922992,0.00022998,2]
[332446214,1721189445311,-3600.0,0.00023,24]
[332446215,1721189445320,-500.0,0.00023,2]
[332446216,1721189445330,-255.832503,0.00023,2]
[332446217,1721189445339,-173.0,0.00023,2]
[332446218,1721189445348,-151.97548656,0.00023019,2]
[332446219,1721189445358,-222.78721591,0.00023037,2]
[332446220,1721189445367,-202.0,0.0002304,2]
[332446221,1721189445378,-616.36240716,0.00023041,30]
[332446222,1721189445387,-282.49712453,0.00023058,2]
[332446223,1721189445397,-150.0,0.00023071,2]
[332446224,1721189445407,-152.38095238,0.00023089,2]
[332446225,1721189445417,-578.44312975,0.0002312,2]
[332446226,1721189445427,-616.36240716,0.00023123,30]
[332446227,1721189445437,-282.49712453,0.00023139,2]
[332446228,1721189445447,-935.21386278,0.00023142,2]
[332446229,1721189445456,-325.28274957,0.00023172,2]
[332446230,1721189445465,-151.97548656,0.00023189,2]
[332446231,1721189445475,-616.36240716,0.00023205,30]
[332446232,1721189445485,-155.9383458,0.00023211,2]
[332446233,1721189445495,-222.78721591,0.00023228,2]
[332446234,1721189445504,-500.0,0.00023235,2]